bitfinex-derivatives/quotes_ETHF0:USTF0_20250504
["timestamp","ask_amount","ask_price","bid_price","bid_amount"]
[1746318935694,2.22142659,1834.9,1834.8,1.6232]
[1746318936598,3.96022659,1834.9,1834.8,1.6232]
[1746318936905,1.08978,1834.8,1834.6,7.84864]
[1746318937095,2.82858,1834.8,1834.7,1.7048]
[1746318937295,3.17520718,1834.8,1834.7,1.7048]
[1746318937597,3.17520718,1834.8,1834.7,2.79462]
[1746318938102,2.08542718,1834.8,1834.7,2.79462]
[1746318938297,0.34662718,1834.8,1834.7,2.79462]
[1746318938499,0.34662718,1834.8,1834.7,6.00242]
[1746318938896,0.34664034,1834.8,1834.7,6.00242]
[1746318940608,0.7851,1834.9,1834.8,1.08976]
[1746318940806,0.34668703,1834.9,1834.8,2.68056]
[1746318941112,0.34668703,1834.9,1834.8,4.36496]
[1746318941701,1.88824,1835.0,1834.8,3.2752]
[1746318941906,1.88824,1835.0,1834.9,2.6805]
[1746318942210,1.1452736,1835.0,1834.9,2.6805]
[1746318942509,1.1452832,1835.0,1834.9,2.6805]
[1746318943307,0.3466832,1835.0,1834.9,2.6805]
[1746318943906,4.72029842,1835.1,1835.0,1.08964]
[1746318944098,5.06691178,1835.1,1835.0,2.74294]
[1746318944302,5.06691565,1835.1,1835.0,2.74294]
[1746318944510,3.97733565,1835.1,1835.0,2.74294]
[1746318944712,0.34661723,1835.1,1835.0,2.74294]
[1746318945407,2.72791723,1835.1,1835.0,1.6533]
[1746318945609,2.72791723,1835.1,1835.0,2.74294]
[1746318946010,2.72785918,1835.1,1835.0,2.74294]
[1746318946910,1.15375918,1835.1,1835.0,2.74294]
[1746318947111,0.34655918,1835.1,1835.0,2.74294]
[1746318947812,0.822,1835.2,1835.1,1.08958]
[1746318948112,1.16845875,1835.2,1835.1,2.73388]
[1746318948308,2.87355875,1835.2,1835.1,2.73388]
[1746318948509,3.96307875,1835.2,1835.1,2.73388]
[1746318948808,3.96307875,1835.2,1835.1,1.6443]
[1746318949309,2.87355875,1835.2,1835.1,2.73388]
[1746318949608,2.5271,1835.2,1835.1,2.73388]
[1746318949813,2.87344796,1835.2,1835.1,2.73388]
[1746318950712,3.96296796,1835.2,1835.1,2.73388]
[1746318950911,2.87339495,1835.2,1835.1,2.73388]
[1746318951414,2.87337092,1835.2,1835.1,2.73388]
[1746318951714,0.34627092,1835.2,1835.1,2.73388]
[1746318953313,0.7978,1835.3,1835.2,1.08952]
[1746318953516,1.14397783,1835.3,1835.2,2.71292]
[1746318953912,1.14397783,1835.3,1835.2,1.6234]
[1746318954217,3.89363783,1835.3,1835.2,1.6234]
[1746318954415,2.80417783,1835.3,1835.2,2.71292]
[1746318954617,3.89363783,1835.3,1835.2,1.6234]
[1746318955120,3.8935754,1835.3,1835.2,1.6234]
[1746318956820,3.89358391,1835.3,1835.2,1.6234]
[1746318958315,3.89358391,1835.3,1835.2,2.71292]
[1746318958316,2.80412391,1835.3,1835.2,2.71292]
[1746318959921,1.14392391,1835.3,1835.2,2.71292]
[1746318960224,0.34612391,1835.3,1835.2,6.26292]
[1746318960516,1.43566869,1835.3,1835.2,6.26292]
[1746318960923,3.09856869,1835.3,1835.2,6.26292]
[1746318961216,0.34620869,1835.3,1835.2,6.26292]
[1746318961632,0.34633229,1835.3,1835.2,6.26292]
[1746318962821,1.08964,1835.0,1834.9,3.2078]
[1746318963022,1.08976,1834.8,1834.7,1.6636]
[1746318963331,1.08982,1834.7,1834.6,7.24200108]
[1746318963519,3.09905229,1834.7,1834.6,7.24200108]
[1746318967030,3.09916536,1834.7,1834.6,7.24200108]
[1746318967529,2.00934536,1834.7,1834.6,7.24200108]
[1746318967733,3.09916536,1834.7,1834.6,7.24200108]
[1746318968033,2.00934536,1834.7,1834.6,7.24200108]
[1746318968233,2.00934536,1834.7,1834.6,8.33188108]
[1746318968433,2.00934536,1834.7,1834.6,10.01438108]
[1746318968632,1.6804,1834.9,1834.7,1.08979]
[1746318968825,1.6804,1834.9,1834.7,5.98009]
[1746318968826,0.34625946,1834.8,1834.7,5.98009]
[1746318969026,3.2939,1834.9,1834.7,2.77229]
[1746318969230,6.92461842,1834.9,1834.8,1.6825]
[1746318969528,7.27087762,1834.9,1834.8,1.6825]
[1746318970339,8.36059762,1834.9,1834.6,1.08986]
[1746318970535,1.98813659,1834.8,1834.7,1.08982]
[1746318970725,1.98813659,1834.8,1834.6,1.6239]
[1746318970726,1.98813659,1834.8,1834.6,2.71374]
[1746318970931,1.6419,1834.8,1834.7,1.08982]
[1746318971225,1.98813985,1834.8,1834.7,2.71372]
[1746318972136,1.98813985,1834.8,1834.7,1.6239]
[1746318972336,1.98812772,1834.8,1834.7,2.71372]
[1746318972541,1.98812772,1834.8,1834.7,1.6239]
[1746318972733,1.98812772,1834.8,1834.7,2.71372]
[1746318972934,0.34622772,1834.8,1834.7,2.71372]
[1746318973235,1.6804,1834.9,1834.7,2.71372]
[1746318973436,1.6804,1834.9,1834.8,1.5761]
[1746318973630,2.02658862,1834.9,1834.8,1.5761]
[1746318973837,3.72748862,1834.9,1834.8,1.5761]
[1746318974037,3.72748964,1834.9,1834.8,1.5761]
[1746318974538,3.72748964,1834.9,1834.8,2.66586]
[1746318974736,3.72748964,1834.9,1834.8,5.87366]
[1746318975038,0.34618964,1834.9,1834.8,6.21586]
[1746318975432,4.386,1835.1,1834.8,6.21586]
[1746318975634,2.04706531,1835.0,1834.9,1.5761]
[1746318976643,0.34616531,1835.0,1834.9,5.8736]
[1746318976840,1.5955,1835.1,1834.9,6.71407]
[1746318977035,2.68508,1835.1,1835.0,1.6244]
[1746318977236,1.675,1835.0,1834.9,3.2078]
[1746318977436,2.02118981,1835.0,1834.9,4.8322]
[1746318977742,2.02116882,1835.0,1834.9,4.8322]
[1746318977942,2.02116882,1835.0,1834.9,1.6244]
[1746318978144,2.02116882,1835.0,1834.9,2.7141]
[1746318978844,1.5955,1835.1,1835.0,1.08964]
[1746318979045,1.9416767,1835.1,1835.0,2.68434]
[1746318979345,1.94168084,1835.1,1835.0,2.68434]
[1746318979833,3.57738084,1835.1,1835.0,2.68434]
[1746318980845,1.94168084,1835.1,1835.0,2.68434]
[1746318981246,1.94171058,1835.1,1835.0,2.68434]
[1746318981547,3.03129058,1835.1,1835.0,2.68434]
[1746318981744,1.94171058,1835.1,1835.0,2.68434]
[1746318982847,4.72709058,1835.1,1835.0,1.5947]
[1746318983044,3.63750539,1835.1,1835.0,2.68434]
[1746318983848,3.63071842,1835.4,1835.3,1.08946]
[1746318984048,3.97691573,1835.4,1835.3,1.08946]
[1746318984249,3.63071842,1835.4,1835.3,1.08946]
[1746318984449,3.63071842,1835.4,1835.3,2.72086]
[1746318986652,3.63071842,1835.4,1835.3,7.72086]
[1746318987555,5.32961842,1835.8,1835.7,1.08923]
[1746318988254,6.41878842,1835.8,1835.7,1.6908]
[1746318988446,8.04518842,1835.8,1835.7,1.6908]
[1746318989049,8.04518842,1835.8,1835.7,2.78003]
[1746318989453,6.95601842,1835.8,1835.7,2.78003]
[1746318989752,6.95601842,1835.8,1835.7,1.6908]
[1746318989753,8.04518842,1835.8,1835.7,1.6908]
[1746318990156,8.04518842,1835.8,1835.7,2.78003]
[1746318990349,8.04518842,1835.8,1835.7,1.6908]
[1746318990751,1.08923,1835.7,1835.6,3.549]
[1746318991060,2.71563,1835.7,1835.6,3.549]
[1746318993154,6.97145882,1835.7,1835.3,1.08942]
[1746318993342,2.75741,1835.6,1835.2,3.2078]
[1746318993549,1.6681,1835.5,1835.4,1.0894]
[1746318993750,1.08926,1835.7,1835.5,1.08931]
[1746318993948,1.6681,1835.6,1835.5,2.82461]
[1746318996843,2.78809,1835.8,1835.6,1.08926]
[1746318997049,1.6989,1835.8,1835.7,1.08923]
[1746318997249,1.6989,1835.8,1835.7,4.63723]
[1746318998857,1.08905,1836.0,1835.9,1.08911]
[1746318999059,3.53535,1836.0,1835.9,1.08911]
[1746318999456,3.53535,1836.0,1835.8,2.74774]
[1746318999658,1.6166,1835.9,1835.8,2.74774]
[1746319000862,0.8297,1836.0,1835.9,1.08911]
[1746319001060,3.57145,1836.0,1835.8,1.08913]
[1746319001260,1.08917,1835.8,1835.7,8.3716]
[1746319001556,1.08917,1835.8,1835.7,3.548]
[1746319001958,1.92037,1835.8,1835.7,3.548]
[1746319004961,2.26590849,1835.8,1835.7,3.548]
[1746319005162,2.26594849,1835.8,1835.6,1.08926]
[1746319005359,1.6132,1835.7,1835.6,1.08926]
[1746319005559,2.70243,1835.7,1835.5,2.6722]
[1746319006161,2.3963,1835.6,1835.5,2.6722]
[1746319006865,3.48558,1835.6,1835.5,1.5829]
[1746319007162,3.48558,1835.6,1835.5,2.67224]
[1746319007766,3.48558,1835.6,1835.5,1.5829]
[1746319008063,3.8314707,1835.6,1835.5,1.5829]
[1746319008957,1.08934,1835.5,1835.4,3.547]
[1746319009164,3.8600307,1835.5,1835.4,3.547]
[1746319009861,1.08952,1835.2,1835.1,4.8221]
[1746319010070,1.43568696,1835.2,1835.1,6.7548]
[1746319010971,3.02878696,1835.2,1835.1,3.547]
[1746319011469,2.68262,1835.2,1835.1,3.547]
[1746319011669,3.02889462,1835.2,1835.1,3.547]
[1746319015071,2.68262,1835.2,1835.1,3.547]
[1746319015272,3.02876742,1835.2,1835.1,3.547]
[1746319016870,3.02858609,1835.2,1835.1,3.547]
[1746319017474,4.74008609,1835.2,1835.1,3.547]
[1746319018774,4.73998322,1835.2,1835.1,3.547]
[1746319020176,4.73995085,1835.2,1835.1,3.547]
[1746319020576,4.73995158,1835.2,1835.1,3.547]
[1746319021683,4.73993341,1835.2,1835.1,3.547]
[1746319021981,4.73991469,1835.2,1835.1,3.547]
[1746319023482,4.7398559,1835.2,1835.1,3.547]
[1746319025284,4.73978098,1835.2,1835.1,3.547]
[1746319025581,4.73977933,1835.2,1835.1,3.547]
[1746319027087,4.73975588,1835.2,1835.1,3.547]
[1746319028978,4.73981091,1835.2,1835.1,3.547]
[1746319029887,4.7399217,1835.2,1835.1,3.547]
[1746319032687,4.74032896,1835.2,1835.1,3.547]
[1746319033785,1.08964,1835.0,1834.9,1.6948]
[1746319033983,1.43584896,1835.0,1834.9,1.6948]
[1746319034281,1.43584896,1835.0,1834.9,2.7845]
[1746319034478,1.43610991,1835.0,1834.9,2.7845]
[1746319034890,1.43610991,1835.0,1834.9,1.6948]
[1746319038090,1.43660329,1835.0,1834.9,1.6948]
[1746319038588,1.43660329,1835.0,1834.9,4.9026]
[1746319038785,0.34696329,1835.0,1834.9,5.9923]
[1746319040095,1.43660329,1835.0,1834.9,5.9923]
[1746319040590,1.43660329,1835.0,1834.9,2.7845]
[1746319040783,0.34696329,1835.0,1834.9,5.9923]
[1746319041288,1.43660329,1835.0,1834.9,5.9923]
[1746319043392,0.34696329,1835.0,1834.9,5.9923]
[1746319043591,1.43660329,1835.0,1834.9,5.9923]
[1746319044494,1.43660329,1835.0,1834.9,4.9026]
[1746319045584,8.55476329,1835.0,1834.3,3.547]
[1746319045795,1.08994,1834.5,1834.4,1.6934]
[1746319046096,1.43690329,1834.5,1834.4,1.6934]
[1746319047194,1.43709216,1834.5,1834.4,1.6934]
[1746319047395,3.14419216,1834.5,1834.4,1.6934]
[1746319047601,1.09,1834.4,1834.3,10.78900108]
[1746319047798,1.43715216,1834.4,1834.3,12.48770108]
[1746319047996,3.14425216,1834.4,1834.3,12.48770108]
[1746319048890,3.14382473,1834.4,1834.3,12.48770108]
[1746319050893,3.14382473,1834.4,1834.3,5.2457]
[1746319051092,3.14382473,1834.4,1834.3,1.6987]
[1746319052195,3.14382473,1834.4,1834.2,3.2078]
[1746319052400,1.09012,1834.2,1834.1,5.2719]
[1746319052697,1.43642898,1834.2,1834.1,5.2719]
[1746319052898,2.86670898,1834.2,1833.9,0.8093]
[1746319053098,1.09023,1834.0,1833.9,2.5332]
[1746319053298,1.43653898,1834.0,1833.9,2.5332]
[1746319053493,1.09029,1833.9,1833.8,13.99780108]
[1746319053902,1.09029,1833.9,1833.8,15.72170108]
[1746319055100,1.09029,1833.9,1833.8,7.24200108]
[1746319055101,1.43600981,1833.9,1833.8,7.24200108]
[1746319055290,8.13229705,1833.9,1833.8,4.74676108]
[1746319055901,8.13229705,1833.9,1833.8,3.51443108]
[1746319056201,8.13229705,1833.9,1833.8,2.27142108]
[1746319056403,8.13229705,1833.9,1833.8,1.08e-06]
[1746319056995,9.76782705,1833.9,1833.4,17.76848609]
[1746319057200,1.09047,1833.6,1833.5,1.6533]
[1746319057994,1.09059,1833.4,1833.3,4.01430108]
[1746319058401,1.09055,1833.5,1833.3,9.01430108]
[1746319058607,4.8663,1833.8,1833.3,4.01430108]
[1746319058799,1.09048,1833.6,1833.3,5.10492108]
[1746319059298,1.09053,1833.5,1833.3,5.10492108]
[1746319059508,1.09053,1833.5,1833.4,1.7279]
[1746319059801,1.09052,1833.6,1833.4,1.7279]
[1746319060190,1.09053,1833.5,1833.4,1.7279]
[1746319062003,4.8663,1833.8,1833.4,1.7279]
[1746319062198,1.09036,1833.8,1833.7,3.2078]
[1746319062404,1.09037,1833.8,1833.6,1.09047]
[1746319062609,1.09037,1833.8,1833.7,2.5103]
[1746319063101,1.09032,1833.9,1833.7,2.5103]
[1746319063302,1.09032,1833.9,1833.8,1.685]
[1746319066392,1.92602,1833.9,1833.8,1.685]
[1746319067205,0.8357,1833.9,1833.8,1.685]
[1746319067408,1.09029,1833.9,1833.8,1.685]
[1746319070604,1.6921,1834.1,1833.8,1.685]
[1746319070798,1.09023,1834.0,1833.9,0.7991]
[1746319072608,1.09029,1833.9,1833.8,1.685]
[1746319074006,1.4358057,1833.9,1833.8,1.685]
[1746319074307,1.43580358,1833.9,1833.8,1.685]
[1746319075007,1.09047,1833.6,1833.5,3.2078]
[1746319075202,1.09047,1833.6,1833.5,4.9419]
[1746319076912,1.43663914,1833.6,1833.5,4.9419]
[1746319077113,1.09047,1833.6,1833.5,4.9419]
[1746319077413,1.09053,1833.5,1833.4,9.46]
[1746319077615,3.90969946,1833.5,1833.4,11.078]
[1746319078212,3.90969946,1833.5,1833.4,3.548]
[1746319079411,3.91001631,1833.5,1833.4,3.548]
[1746319080118,1.09065,1833.3,1833.2,1.618]
[1746319080411,1.09043,1833.7,1833.5,1.09052]
[1746319080606,1.09043,1833.7,1833.6,1.7069]
[1746319080813,1.43702751,1833.7,1833.6,1.7069]
[1746319081415,3.16742751,1833.7,1833.6,1.7069]
[1746319081913,1.43702751,1833.7,1833.6,1.7069]
[1746319082107,0.34659751,1833.7,1833.6,2.79737]
[1746319082307,0.34673868,1833.7,1833.6,2.79737]
[1746319082617,1.0903,1833.9,1833.7,1.09038]
[1746319082915,1.09029,1833.9,1833.8,2.4984]
[1746319083112,0.34680506,1833.9,1833.8,3.58875]
[1746319083313,0.34680506,1833.9,1833.8,2.4984]
[1746319083917,1.43709506,1833.9,1833.8,2.4984]
[1746319084111,1.43711823,1833.9,1833.8,2.4984]
[1746319085919,1.43711156,1833.9,1833.8,2.4984]
[1746319086412,0.34682156,1833.9,1833.8,3.58875]
[1746319087212,1.09029,1833.9,1833.8,5.7062]
[1746319087515,1.43712137,1833.9,1833.8,5.7062]
[1746319087719,1.43712137,1833.9,1833.8,4.8946]
[1746319087919,0.34683137,1833.9,1833.8,4.8946]
[1746319088107,0.34683137,1833.9,1833.8,5.98495]
[1746319088307,0.34683137,1833.9,1833.8,4.8946]
[1746319089006,1.43712137,1833.9,1833.8,1.6868]
[1746319089212,2.91483137,1833.9,1833.4,12.6688]
[1746319089415,2.24420137,1833.8,1833.6,2.68665]
[1746319089614,3.59967,1833.8,1833.7,1.5962]
[1746319089817,3.94660787,1833.8,1833.7,1.5962]
[1746319090221,1.09052,1833.6,1833.4,14.3267]
[1746319090519,1.09052,1833.6,1833.5,1.5962]
[1746319090719,1.43750624,1833.6,1833.5,1.5962]
[1746319090920,0.34698624,1833.6,1833.5,2.68673]
[1746319091418,1.43746655,1833.6,1833.5,1.5962]
[1746319091722,2.30316655,1833.6,1833.5,1.5962]
[1746319092219,1.09065,1833.3,1833.2,3.2078]
[1746319092517,0.34702707,1833.3,1833.2,8.416]
[1746319092721,0.34702707,1833.3,1833.2,9.50671]
[1746319093420,0.8469,1833.4,1833.3,1.09065]
[1746319093622,1.19384371,1833.4,1833.3,2.75085]
[1746319094420,0.34694371,1833.4,1833.3,2.75085]
[1746319094622,1.95622,1833.6,1833.4,1.09059]
[1746319094821,1.95622,1833.6,1833.5,1.5995]
[1746319095018,2.30312353,1833.6,1833.5,1.5995]
[1746319095318,1.09057,1833.5,1833.3,1.94091]
[1746319095515,2.68367,1833.5,1833.4,1.5995]
[1746319095714,1.93997408,1833.5,1833.4,2.69009]
[1746319095920,0.34687408,1833.5,1833.4,2.69009]
[1746319096122,0.34687408,1833.5,1833.4,3.50309]
[1746319096522,0.34687408,1833.5,1833.4,6.71089]
[1746319096716,0.34687408,1833.5,1833.4,3.50309]
[1746319097020,0.34687408,1833.5,1833.4,6.71089]
[1746319097215,0.8469,1833.7,1833.6,1.09047]
[1746319097417,1.19376546,1833.7,1833.6,1.09047]
[1746319097821,1.19376546,1833.7,1833.6,2.67507]
[1746319098119,2.28417546,1833.7,1833.6,1.5846]
[1746319098619,3.87307546,1833.7,1833.6,1.5846]
[1746319100326,1.09047,1833.6,1833.5,3.549]
[1746319100526,1.09047,1833.6,1833.5,4.63953]
[1746319100527,2.77846546,1833.6,1833.5,4.63953]
[1746319100726,2.77846546,1833.6,1833.5,6.22413]
[1746319101023,2.77846546,1833.6,1833.5,4.63953]
[1746319101427,0.34686546,1833.6,1833.5,4.63953]
[1746319101627,4.72105842,1833.9,1833.5,5.1613]
[1746319101824,1.43725759,1833.8,1833.7,1.09036]
[1746319103129,1.43725759,1833.8,1833.6,2.74672]
[1746319103327,0.34690759,1833.7,1833.6,2.74672]
[1746319103528,1.43733759,1833.7,1833.5,3.549]
[1746319103831,3.2598,1833.7,1833.6,1.09047]
[1746319104031,3.60676062,1833.7,1833.6,1.09047]
[1746319104331,0.34696062,1833.7,1833.6,1.09047]
[1746319104730,1.43737062,1833.7,1833.5,4.63949]
[1746319104931,3.63846062,1833.6,1833.5,4.63949]
[1746319105531,3.63848229,1833.6,1833.5,4.63949]
[1746319106126,0.34698229,1833.6,1833.5,4.63949]
[1746319106321,1.09038,1833.8,1833.7,1.09041]
[1746319106536,1.43734589,1833.8,1833.7,1.09041]
[1746319106831,3.07134589,1833.8,1833.7,1.09041]
[1746319107034,1.98096589,1833.8,1833.6,1.09043]
[1746319107238,0.34696589,1833.7,1833.6,1.09043]
[1746319107429,0.34697084,1833.7,1833.6,1.09043]
[1746319107944,1.09047,1833.6,1833.5,6.7568]
[1746319108142,1.09058,1833.5,1833.3,1.09064]
[1746319108441,1.43759084,1833.4,1833.2,7.85447]
[1746319108639,2.87387084,1833.3,1833.2,7.85447]
[1746319108840,3.66437084,1833.3,1833.2,7.85447]
[1746319109043,3.66436235,1833.3,1833.2,7.85447]
[1746319109742,4.75501235,1833.3,1833.2,6.7638]
[1746319109941,4.75501235,1833.3,1833.2,3.556]
[1746319110139,4.75501235,1833.3,1833.2,4.64671]
[1746319110541,4.75501235,1833.3,1833.2,3.556]
[1746319112965,4.75505235,1833.3,1833.1,10.70853768]
[1746319113160,3.11157235,1833.2,1833.1,10.70853768]
[1746319113462,0.34696235,1833.2,1833.1,11.79930768]
[1746319113660,0.34696235,1833.2,1833.1,1.09077]
[1746319113857,0.34696235,1833.2,1833.0,5.94279]
[1746319114060,3.3097,1833.2,1833.0,5.94279]
[1746319114461,4.40043,1833.2,1833.0,5.94279]
[1746319114661,4.40043,1833.2,1833.0,4.0259]
[1746319114856,2.02060852,1833.1,1833.0,3.2078]
[1746319115154,2.02060852,1833.1,1833.0,4.29863]
[1746319115563,1.6739,1833.1,1833.0,4.29863]
[1746319116251,2.76467,1833.1,1833.0,4.29863]
[1746319116769,1.09083,1833.0,1832.9,3.556]
[1746319116971,3.1356846,1833.0,1832.9,3.556]
[1746319118056,3.13560381,1833.0,1832.9,3.556]
[1746319118852,1.43740381,1833.0,1832.9,3.556]
[1746319119839,1.43735721,1833.0,1832.9,3.556]
[1746319121545,1.43722098,1833.0,1832.9,3.556]
[1746319122444,1.43722311,1833.0,1832.9,3.556]
[1746319122643,0.34639311,1833.0,1832.9,3.556]
[1746319122845,0.34639311,1833.0,1832.9,4.64689]
[1746319123048,2.70249,1833.1,1832.9,6.31489]
[1746319123338,1.6117,1833.1,1833.0,1.09083]
[1746319123537,2.70247,1833.1,1833.0,1.668]
[1746319124543,1.09083,1833.0,1832.9,3.556]
[1746319124839,2.82253,1833.0,1832.9,3.556]
[1746319125243,2.82253,1833.0,1832.9,5.224]
[1746319125756,1.7317,1833.0,1832.9,6.31489]
[1746319126045,1.09079,1833.1,1832.9,6.31486]
[1746319126248,1.09079,1833.1,1833.0,1.6474]
[1746319126445,1.43699587,1833.1,1833.0,1.6474]
[1746319126747,1.09079,1833.1,1833.0,1.6474]
[1746319127046,3.0660937,1833.1,1833.0,1.6474]
[1746319128051,1.9753037,1833.1,1833.0,1.6474]
[1746319128349,3.63071842,1833.3,1833.2,1.09071]
[1746319128647,3.97698251,1833.3,1833.2,1.09071]
[1746319128848,3.63071842,1833.3,1833.2,1.09071]
[1746319129046,3.63071842,1833.3,1833.2,3.63011]
[1746319129250,4.72136842,1833.3,1833.2,3.63011]
[1746319129549,3.63071842,1833.3,1833.2,6.83791]
[1746319130150,1.09063,1833.4,1833.2,6.83791]
[1746319130353,1.09063,1833.4,1833.3,1.6854]
[1746319130553,1.43695259,1833.4,1833.3,1.6854]
[1746319130852,1.09063,1833.4,1833.3,2.77605]
[1746319131350,0.3463547,1833.4,1833.2,3.2078]
[1746319131556,1.09077,1833.1,1833.0,1.5862]
[1746319132653,1.09077,1833.1,1833.0,2.67703]
[1746319132853,2.4127,1833.1,1833.0,2.67703]
[1746319133457,3.50347,1833.1,1833.0,1.5862]
[1746319133653,3.84439211,1833.1,1833.0,2.67703]
[1746319133852,2.40704311,1833.1,1833.0,2.67703]
[1746319134355,1.95182,1833.4,1833.2,1.09066]
[1746319134744,1.95182,1833.4,1833.3,1.6977]
[1746319134951,2.29847154,1833.4,1833.3,2.78835]
[1746319135350,1.20785154,1833.4,1833.3,2.78835]
[1746319135647,2.29844154,1833.4,1833.3,2.78835]
[1746319136058,0.34665154,1833.4,1833.3,2.78835]
[1746319137162,0.34665154,1833.4,1833.3,5.99615]
[1746319137457,0.34665154,1833.4,1833.3,6.80235]
[1746319137646,2.75811,1833.6,1833.4,1.09055]
[1746319137855,0.34690957,1833.5,1833.4,1.09055]
[1746319139154,0.34690957,1833.5,1833.4,1.87835]
[1746319139654,0.34686842,1833.5,1833.4,1.87835]
[1746319140052,1.43739842,1833.5,1833.4,0.7878]
[1746319140757,0.34686842,1833.5,1833.4,1.87839]
[1746319140957,0.34687168,1833.5,1833.4,1.87839]
[1746319142457,1.09049,1833.6,1833.4,1.87839]
[1746319142860,1.43729645,1833.5,1833.4,0.7878]
[1746319143060,1.09059,1833.4,1833.3,5.10463]
[1746319143358,1.43733937,1833.4,1833.3,5.10463]
[1746319144454,0.34674937,1833.4,1833.3,5.10463]
[1746319144657,1.43731278,1833.4,1833.3,3.2078]
[1746319144957,2.80042278,1833.4,1833.3,1.09065]
[1746319145158,3.89103278,1833.4,1833.2,4.65666]
[1746319145360,1.09065,1833.3,1833.2,4.65666]
[1746319145559,3.10506672,1833.3,1833.2,4.65666]
[1746319146263,2.01441672,1833.3,1833.2,4.65666]
[1746319146663,1.6677,1833.3,1833.2,4.65666]
[1746319146866,0.786,1833.4,1833.3,1.09065]
[1746319147074,0.8266,1833.5,1833.4,1.09059]
[1746319147363,1.17330719,1833.5,1833.4,1.09059]
[1746319147559,2.26383719,1833.5,1833.4,1.09059]
[1746319147966,1.17330719,1833.5,1833.4,1.09059]
[1746319148166,1.89762,1833.7,1833.6,1.09047]
[1746319148368,0.34667212,1833.7,1833.6,1.09047]
[1746319148961,0.34667212,1833.7,1833.5,7.86431]
[1746319149162,2.07696326,1833.6,1833.5,4.65652]
[1746319149358,2.0769723,1833.6,1833.5,4.65652]
[1746319149559,2.07697119,1833.6,1833.5,4.65652]
[1746319149759,3.16744119,1833.6,1833.5,3.566]
[1746319151062,1.09059,1833.4,1833.3,6.7738]
[1746319151462,1.43740912,1833.4,1833.3,3.566]
[1746319151662,3.00890912,1833.4,1833.3,3.566]
[1746319151863,3.00890912,1833.4,1833.1,4.9063]
[1746319151864,1.09068,1833.3,1833.1,5.99704]
[1746319152159,1.19281912,1833.2,1833.1,5.99704]
[1746319152354,1.19281912,1833.2,1833.1,4.29854]
[1746319152560,2.80119,1833.5,1833.3,1.09062]
[1746319152760,1.97887965,1833.4,1833.3,1.09062]
[1746319153165,0.34687956,1833.4,1833.3,1.09062]
[1746319153566,0.34687956,1833.4,1833.3,4.65662]
[1746319154866,0.34697359,1833.4,1833.3,4.65662]
[1746319155856,0.34697359,1833.4,1833.3,5.46232]
[1746319156766,0.34712519,1833.4,1833.3,5.46232]
[1746319157662,1.7106,1833.5,1833.4,1.09059]
[1746319157955,2.0578056,1833.5,1833.4,1.09059]
[1746319158470,0.34726204,1833.5,1833.3,7.5795]
[1746319158673,5.29511842,1833.7,1833.6,1.09047]
[1746319158875,5.64235478,1833.7,1833.6,1.09047]
[1746319159369,6.73276478,1833.7,1833.6,1.09047]
[1746319159562,5.64235478,1833.7,1833.6,1.09047]
[1746319160269,5.64226465,1833.7,1833.6,1.09047]
[1746319160573,5.64226465,1833.7,1833.5,3.2078]
[1746319160574,6.73267465,1833.7,1833.5,4.2983]
[1746319160769,0.34714623,1833.6,1833.5,1.0905]
[1746319161069,2.03254623,1833.6,1833.5,1.0905]
[1746319161265,0.34714623,1833.6,1833.5,1.0905]
[1746319162070,5.29511842,1833.7,1833.6,1.09047]
[1746319162270,2.01151758,1833.7,1833.6,1.09047]
[1746319162970,3.10192758,1833.7,1833.6,1.09047]
[1746319163471,2.01151758,1833.7,1833.6,1.09047]
[1746319164074,2.01151758,1833.7,1833.3,16.21812]
[1746319164271,0.34711758,1833.6,1833.5,1.09053]
[1746319164471,1.98161758,1833.6,1833.5,1.09053]
[1746319165962,0.34711758,1833.6,1833.5,1.09053]
[1746319166570,1.97801758,1833.6,1833.5,1.09053]
[1746319169169,1.97796313,1833.6,1833.5,1.09053]
[1746319169373,0.34706313,1833.6,1833.5,1.09053]
[1746319169574,0.34706313,1833.6,1833.5,4.29833]
[1746319169776,3.63071842,1833.8,1833.7,1.09041]
[1746319169972,3.97777208,1833.8,1833.7,1.09041]
[1746319170969,3.9777373,1833.8,1833.7,1.09041]
[1746319171464,3.9777373,1833.8,1833.7,2.73451]
[1746319172172,5.0680873,1833.8,1833.7,1.09041]
[1746319172474,6.7170173,1833.8,1833.7,1.09041]
[1746319172673,5.6266373,1833.8,1833.7,1.09041]
[1746319173477,6.7169873,1833.8,1833.7,1.09041]
[1746319173678,5.6266373,1833.8,1833.6,4.64945]
[1746319173878,4.72108842,1833.8,1833.7,1.09041]
[1746319174173,0.34686864,1833.8,1833.7,1.09041]
[1746319174378,0.34686864,1833.8,1833.7,2.78181]
[1746319174575,0.3468891,1833.8,1833.7,5.98961]
[1746319174772,3.63071842,1834.0,1833.9,1.09029]
[1746319174973,4.82593669,1834.0,1833.9,1.09029]
[1746319176177,3.97763669,1834.0,1833.9,1.09029]
[1746319176381,3.63071842,1834.0,1833.9,14.53019]
[1746319178074,3.63071842,1834.0,1833.9,9.53019]
[1746319178281,3.63071842,1834.1,1834.0,1.09023]
[1746319178583,3.63071842,1834.1,1834.0,8.71333]
[1746319181787,1.5945,1834.5,1834.0,10.34861]
[1746319181979,2.68447,1834.5,1834.1,4.8929]
[1746319182182,2.68447,1834.5,1834.3,1.09002]
[1746319182581,2.68447,1834.5,1834.4,1.09]
[1746319182783,3.03040245,1834.5,1834.4,1.09]
[1746319182991,3.03040245,1834.5,1834.3,2.77511]
[1746319183179,2.68447,1834.5,1834.4,1.09]
[1746319183479,1.94037782,1834.5,1834.4,1.09]
[1746319185181,1.5945,1834.5,1834.4,1.09]
[1746319185382,1.94029228,1834.5,1834.4,1.09]
[1746319185685,1.94029228,1834.5,1834.3,1.6851]
[1746319185885,6.5945,1834.5,1834.1,3.2078]
[1746319186087,0.34583196,1834.4,1834.2,1.09009]
[1746319186288,1.09,1834.4,1834.2,1.09009]